fUST/lending_fUST_20250801
["ID","MTS","AMOUNT","RATE_DAILY","PERIOD"]
[376558315,1754020232402,-679.11,0.00020928,2]
[376558317,1754020232411,-460.0,0.00020928,2]
[376558319,1754020232421,-460.0,0.00021198,2]
[376558322,1754020232430,-460.0,0.00021198,2]
[376558324,1754020232449,-500.0,0.00021198,2]
[376558326,1754020232459,-460.0,0.00021198,2]
[376558328,1754020232469,-460.0,0.00021198,2]
[376558330,1754020232481,-460.0,0.00021198,2]
[376558332,1754020232490,-460.0,0.00021198,2]
[376558334,1754020232500,-460.0,0.00021198,2]
[376558336,1754020232509,-460.0,0.00021198,2]
[376558338,1754020232519,-460.0,0.00021198,2]
[376558340,1754020232532,-1391.3,0.00021198,2]
[376558342,1754020232541,-460.0,0.00021198,2]
[376558344,1754020232551,-460.0,0.00021198,2]
[376558346,1754020232561,-460.0,0.00021198,2]
[376558348,1754020232570,-460.0,0.00021198,2]
[376558350,1754020232580,-311.5789209,0.00021198,2]
[376558352,1754020232589,-460.0,0.00021198,2]
[376558354,1754020232599,-460.0,0.00021198,2]
[376558356,1754020232608,-460.0,0.00021198,2]
[376558358,1754020232617,-460.0,0.00021198,2]
[376558360,1754020232627,-460.0,0.00021198,2]
[376558362,1754020232637,-460.0,0.00021198,2]
[376558364,1754020232646,-460.0,0.00021198,2]
[376558366,1754020232656,-460.0,0.00021199,2]
[376558368,1754020232665,-460.0,0.00021199,2]
[376558370,1754020232674,-460.0,0.00021199,2]
[376558373,1754020232684,-460.0,0.00021199,2]
[376558375,1754020232693,-460.0,0.00021199,2]
[376558377,1754020232702,-460.0,0.00021199,2]
[376558379,1754020232711,-799.61,0.00021199,2]
[376558381,1754020232722,-764.32,0.00021199,2]
[376558398,1754020232731,-460.0,0.00021199,2]
[376558401,1754020232891,-495.34,0.00021199,2]
[376558403,1754020232901,-460.0,0.00021199,2]
[376558405,1754020232910,-464.18,0.00021199,2]
[376558407,1754020232919,-195.87197587,0.00021199,2]
[376558409,1754020232928,-460.0,0.000212,2]
[376558411,1754020232937,-460.0,0.000212,2]
[376558413,1754020232946,-466.38677929,0.000212,2]
[376558415,1754020232956,-527.24,0.00021201,2]
[376558417,1754020232964,-460.0,0.00021201,2]
[376558419,1754020232973,-2377.21,0.00021201,2]
[376558421,1754020232983,-1049.06,0.00021201,2]
[376558423,1754020232991,-815.5,0.00021201,2]
[376558425,1754020233000,-518.81,0.00021201,2]
[376558427,1754020233012,-771.7,0.00021201,2]
[376558429,1754020233022,-460.0,0.00021201,2]
[376558431,1754020233032,-460.0,0.00021201,2]
[376558433,1754020233042,-460.0,0.00021201,2]
[376558435,1754020233055,-1864.36,0.00021201,2]
[376558437,1754020233065,-460.0,0.00021201,2]
[376558439,1754020233074,-1128.51,0.00021201,2]
[376558441,1754020233085,-460.0,0.00021201,2]
[376558443,1754020233095,-1214.85,0.00021201,2]
[376558445,1754020233104,-460.0,0.00021201,2]
[376558447,1754020233114,-679.11,0.00021202,2]
[376558449,1754020233124,-915.04,0.00021203,2]
[376558451,1754020233135,-200.0,0.00021344,15]
[376558453,1754020233144,-200.0,0.00021344,15]
[376558455,1754020233153,-200.0,0.00021344,15]
[376558457,1754020233162,-200.0,0.00021344,15]
[376558459,1754020233172,-200.0,0.00021344,15]
[376558461,1754020233181,-345.0,0.00021457,2]
[376558463,1754020233190,-345.0,0.00021458,2]
[376558465,1754020233199,-523.24,0.00021472,2]
[376558467,1754020233209,-460.0,0.00021472,2]
[376558469,1754020233218,-460.0,0.00021472,2]
[376558471,1754020233228,-460.0,0.00021472,2]
[376558473,1754020233237,-1391.3,0.00021472,2]
[376558475,1754020233246,-460.0,0.00021472,2]
[376558477,1754020233255,-460.0,0.00021472,2]
[376558479,1754020233264,-460.0,0.00021472,2]
[376558481,1754020233275,-460.0,0.00021472,2]
[376558483,1754020233284,-189.61009248,0.00021472,2]
[376558485,1754020233293,-460.0,0.00021472,2]
[376558487,1754020233303,-460.0,0.00021472,2]
[376558489,1754020233314,-460.0,0.00021472,2]
[376558491,1754020233323,-460.0,0.00021473,2]
[376558493,1754020233332,-460.0,0.00021473,2]
[376558495,1754020233342,-785.74,0.00021473,2]
[376558497,1754020233351,-459.3376197,0.00021473,2]
[376559048,1754020239402,-500.0,0.00021198,2]
[376559049,1754020239411,-500.0,0.00021472,2]
[376559050,1754020239424,-0.6623803,0.00021473,2]
[376559051,1754020239437,-460.0,0.00021473,2]
[376559054,1754020239450,-462.59557922,0.00021473,2]
[376559056,1754020239463,-13.46616933,0.00021473,2]
[376559057,1754020239479,-786.14383067,0.00021473,2]
[376559058,1754020239489,-460.0,0.00021473,2]
[376559059,1754020239500,-555.96922675,0.00021473,2]
[376559060,1754020239514,-208.35077325,0.00021473,2]
[376559061,1754020239527,-460.0,0.00021473,2]
[376559062,1754020239539,-370.05639955,0.00021473,2]
[376559063,1754020239553,-125.28360045,0.00021473,2]
[376559064,1754020239565,-464.18,0.00021473,2]
[376559065,1754020239577,-460.0,0.00021474,2]
[376559066,1754020239589,-527.24,0.00021475,2]
[376559067,1754020239601,-460.0,0.00021475,2]
[376559068,1754020239611,-282.93997164,0.00021475,2]
[376559069,1754020239626,-857.80998,0.00021475,2]
[376559070,1754020239681,-634.07787344,0.00021475,2]
[376559071,1754020239897,-602.38217492,0.00021475,2]
[376559072,1754020239909,-1049.06,0.00021475,2]
[376559073,1754020239920,-815.5,0.00021475,2]
[376559074,1754020239931,-518.81,0.00021475,2]
[376559075,1754020239942,-771.7,0.00021475,2]
[376559076,1754020239953,-361.81027367,0.00021475,2]
[376559077,1754020239965,-460.0,0.00021475,2]
[376559078,1754020239976,-460.0,0.00021475,2]
[376559079,1754020239988,-1864.36,0.00021475,2]
[376559080,1754020239999,-460.0,0.00021475,2]
[376559081,1754020240010,-1128.51,0.00021475,2]
[376559082,1754020240019,-460.0,0.00021475,2]
[376559083,1754020240030,-1214.85,0.00021475,2]
[376559085,1754020240042,-460.0,0.00021475,2]
[376559087,1754020240054,-679.11,0.00021476,2]
[376559089,1754020240064,-915.04,0.00021477,2]
[376559091,1754020240075,-1791.0,0.00021576,2]
[376559093,1754020240087,-345.0,0.00021582,2]
[376559095,1754020240097,-345.0,0.00021589,2]
[376559097,1754020240109,-500.0,0.00021623,2]
[376559099,1754020240119,-503.50883992,0.0002165,2]
[376559101,1754020240131,-345.0,0.00021661,2]
[376559103,1754020240143,-265.29,0.00021736,10]
[376559105,1754020240154,-160.762,0.00021743,2]
[376559107,1754020240165,-460.0,0.00021746,2]
[376559109,1754020240176,-460.0,0.00021746,2]
[376559110,1754020240187,-237.30374485,0.00021746,2]
[376559111,1754020240199,-1391.3,0.00021746,2]
[376559112,1754020240209,-460.0,0.00021746,2]
[376559113,1754020240221,-460.0,0.00021746,2]
[376559114,1754020240230,-430.74817278,0.00021746,2]
[376559115,1754020240243,-29.25182722,0.00021746,2]
[376559116,1754020240252,-460.0,0.00021746,2]
[376559117,1754020240263,-460.0,0.00021746,2]
[376559118,1754020240275,-460.0,0.00021746,2]
[376559119,1754020240287,-460.0,0.00021746,2]
[376559120,1754020240299,-460.0,0.00021747,2]
[376559121,1754020240310,-785.74,0.00021747,2]
[376559122,1754020240320,-460.0,0.00021747,2]
[376559123,1754020240330,-799.61,0.00021747,2]
[376559124,1754020240340,-764.32,0.00021747,2]
[376559125,1754020240351,-460.0,0.00021747,2]
[376559126,1754020240362,-495.34,0.00021747,2]
[376559127,1754020240373,-464.18,0.00021747,2]
[376559128,1754020240385,-500.0,0.00021747,2]
[376559129,1754020240395,-501.97810472,0.00021747,2]
[376559130,1754020240405,-460.0,0.00021748,2]
[376559131,1754020240416,-527.24,0.00021749,2]
[376559132,1754020240425,-2377.21,0.00021749,2]
[376559133,1754020240436,-32.04089561,0.00021749,2]
[376559134,1754020240449,-1017.01910439,0.00021749,2]
[376559135,1754020240460,-815.5,0.00021749,2]
[376559136,1754020240470,-771.7,0.00021749,2]
[376559137,1754020240481,-518.81,0.00021749,2]
[376559139,1754020240491,-460.0,0.00021749,2]
[376559141,1754020240501,-460.0,0.00021749,2]
[376559142,1754020240511,-1864.36,0.00021749,2]
[376559144,1754020240523,-460.0,0.00021749,2]
[376559146,1754020240533,-1128.51,0.00021749,2]
[376559148,1754020240543,-1122.96,0.00021749,2]
[376559150,1754020240554,-367.76596054,0.00021749,2]
[376559152,1754020240565,-685.2894551,0.00021749,2]
[376559154,1754020240578,-529.5605449,0.00021749,2]
[376559156,1754020240588,-10.00731102,0.00021749,2]
[376559339,1754020242895,-460.0,0.00020927,2]
[376559342,1754020242905,-460.0,0.00021201,2]
[376559344,1754020242916,-460.0,0.00021475,2]
[376559346,1754020242927,-500.0,0.00021747,2]
[376559348,1754020242937,-473.53574612,0.00021747,2]
[376559350,1754020242946,-500.0,0.00021747,2]
[376559352,1754020242955,-500.0,0.00021747,2]
[376559354,1754020242965,-500.0,0.00021747,2]
[376559356,1754020242974,-500.0,0.00021747,2]
[376559358,1754020242983,-500.0,0.00021747,2]
[376559360,1754020242992,-500.0,0.00021747,2]
[376559363,1754020243001,-500.0,0.00021747,2]
[376559380,1754020243158,-500.0,0.00021747,2]
[376559383,1754020243168,-500.0,0.00021747,2]
[376559386,1754020243178,-500.0,0.00021747,2]
[376559388,1754020243188,-500.0,0.00021747,2]
[376559391,1754020243197,-542.20947672,0.00021747,2]
[376559393,1754020243206,-376.81251459,0.00021747,2]
[376559395,1754020243216,-500.0,0.00021747,2]
[376559396,1754020243226,-500.0,0.00021747,2]
[376559397,1754020243235,-470.49022901,0.00021747,2]
[376559398,1754020243250,-29.50977099,0.00021747,2]
[376559399,1754020243260,-500.0,0.00021747,2]
[376559400,1754020243269,-472.20937204,0.00021747,2]
[376559403,1754020245815,-460.0,0.00021198,2]
[376559404,1754020245825,-460.0,0.00021472,2]
[376559405,1754020245837,-460.0,0.00021746,2]
[376559406,1754020245848,-8.48142144,0.00021747,2]
[376559407,1754020245869,-19.30920652,0.00021747,2]
[376559408,1754020245878,-387.53669142,0.00021747,2]
[376559409,1754020245888,-325.31166695,0.00021747,2]
[376559410,1754020245974,-174.68833305,0.00021747,2]
[376559411,1754020245984,-449.99268898,0.00021749,2]
[376559412,1754020245994,-517.02364383,0.00021749,2]
[376559413,1754020246003,-679.11,0.0002175,2]
[376559414,1754020246013,-915.04,0.00021751,2]
[376559415,1754020246023,-1791.0,0.00021878,2]
[376559416,1754020246035,-200.0,0.00021918,2]
[376559417,1754020246044,-345.0,0.00021988,2]
[376559418,1754020246056,-200.47909777,0.00022,2]
[376559419,1754020246065,-164.0,0.00022,2]
[376559420,1754020246074,-896.16,0.00022,2]
[376559421,1754020246084,-151.0,0.00022014,2]
[376559422,1754020246094,-151.0,0.00022014,2]
[376559423,1754020246103,-460.0,0.0002202,2]
[376559424,1754020246112,-460.0,0.0002202,2]
[376559425,1754020246124,-1391.3,0.0002202,2]
[376559426,1754020246135,-460.0,0.0002202,2]
[376559427,1754020246145,-460.0,0.0002202,2]
[376559428,1754020246155,-399.8045783,0.0002202,2]
[376559429,1754020246165,-460.0,0.0002202,2]
[376559430,1754020246175,-460.0,0.0002202,2]
[376559431,1754020246184,-460.0,0.0002202,2]
[376559432,1754020246193,-460.0,0.0002202,2]
[376559433,1754020246202,-460.0,0.0002202,2]
[376559434,1754020246211,-460.0,0.00022021,2]
[376559435,1754020246221,-785.74,0.00022021,2]
[376559436,1754020246231,-799.61,0.00022021,2]
[376559437,1754020246240,-764.32,0.00022021,2]
[376559438,1754020246249,-460.0,0.00022021,2]
[376559439,1754020246259,-495.34,0.00022021,2]
[376559440,1754020246268,-464.18,0.00022021,2]
[376559441,1754020246278,-460.0,0.00022022,2]
[376559442,1754020246287,-527.24,0.00022023,2]
[376559443,1754020246297,-2377.21,0.00022023,2]
[376559444,1754020246307,-1049.06,0.00022023,2]
[376559445,1754020246316,-815.5,0.00022023,2]
[376559446,1754020246326,-771.7,0.00022023,2]
[376559447,1754020246335,-518.81,0.00022023,2]
[376559448,1754020246346,-460.0,0.00022023,2]
[376559449,1754020246356,-460.0,0.00022023,2]
[376559450,1754020246366,-1864.36,0.00022023,2]
[376559451,1754020246375,-460.0,0.00022023,2]
[376559452,1754020246384,-1128.51,0.00022023,2]
[376559453,1754020246394,-1214.85,0.00022023,2]
[376559454,1754020246403,-460.0,0.00022023,2]
[376559455,1754020246412,-679.11,0.00022024,2]
[376559456,1754020246422,-915.04,0.00022025,2]
[376559457,1754020246432,-345.0,0.0002205,2]
[376559458,1754020246441,-345.0,0.00022067,2]
[376559459,1754020246451,-20641.26973444,0.00022098,2]
[376559460,1754020246460,-226.77549533,0.00022164,2]
[376559461,1754020246470,-1000.0,0.00022171,2]
[376559462,1754020246480,-189.02726244,0.00022197,2]
[376559463,1754020246490,-270.27,0.000222,2]
[376559464,1754020246499,-460.0,0.00022294,2]
[376559465,1754020246509,-460.0,0.00022294,2]
[376559466,1754020246519,-1391.3,0.00022294,2]
[376559467,1754020246530,-460.0,0.00022294,2]
[376559468,1754020246539,-460.0,0.00022294,2]
[376559469,1754020246549,-460.0,0.00022294,2]
[376559470,1754020246559,-460.0,0.00022294,2]
[376559471,1754020246569,-460.0,0.00022294,2]
[376559472,1754020246578,-321.38250095,0.00022294,2]
[376559473,1754020246587,-460.0,0.00022295,2]
[376559474,1754020246597,-785.74,0.00022295,2]
[376559475,1754020246606,-799.61,0.00022295,2]
[376559476,1754020246615,-764.32,0.00022295,2]
[376559477,1754020246625,-460.0,0.00022295,2]
[376559478,1754020246635,-495.34,0.00022295,2]
[376559479,1754020246644,-464.18,0.00022295,2]
[376559480,1754020246653,-460.0,0.00022296,2]
[376559481,1754020246663,-527.24,0.00022297,2]
[376559482,1754020246673,-2377.21,0.00022297,2]
[376559483,1754020246682,-1049.06,0.00022297,2]
[376559484,1754020246691,-815.5,0.00022297,2]
[376559485,1754020246700,-771.7,0.00022297,2]
[376559486,1754020246709,-518.81,0.00022297,2]
[376559487,1754020246719,-460.0,0.00022297,2]
[376559488,1754020246728,-460.0,0.00022297,2]
[376559489,1754020246737,-1864.36,0.00022297,2]
[376559490,1754020246746,-460.0,0.00022297,2]
[376559491,1754020246756,-1128.51,0.00022297,2]
[376559492,1754020246766,-48.07895535,0.00022297,2]
[376559493,1754020416225,167.0,0.000273,120]
[376559496,1754020693542,233.495321,0.00013699,2]
[376559505,1754021230142,-813.66552267,0.00019049,2]
[376559506,1754021230164,-144.16939826,0.00019632,2]
[376559507,1754021250087,-36.35074274,0.00019632,2]
[376559508,1754021250108,-1000.0,0.00019901,2]
[376559509,1754021250127,-160.0,0.0002,3]
[376559510,1754021250147,-41.89680544,0.0002,3]
[376559512,1754021348169,-173.87707378,0.000189,2]
[376559513,1754021348191,-1318.35931831,0.0001987,2]
[376559514,1754021348212,-118.10319456,0.0002,3]
[376559515,1754021348234,-160.0,0.0002,3]
[376559516,1754021348254,-160.0,0.0002,3]
[376559517,1754021348274,-233.495321,0.00020187,2]
[376559574,1754021432221,-156.83374714,0.00020816,2]
[376559576,1754021432231,-300.0,0.00020915,2]
[376559578,1754021432241,-300.0,0.00020915,2]
[376559580,1754021432250,-813.0,0.00020915,2]
[376559581,1754021432259,-466.68966928,0.00020915,2]
[376559582,1754021432269,-466.19483135,0.00020915,2]
[376559584,1754021432278,-50000.0,0.00020916,2]
[376559586,1754021432287,-460.0,0.00020916,2]
[376559588,1754021432297,-466.04450768,0.00020916,2]
[376559590,1754021432306,-901.8,0.00020916,2]
[376559592,1754021432315,-460.0,0.00020916,2]
[376559594,1754021432324,-732.38,0.00020916,2]
[376559596,1754021432334,-1665.99,0.00020916,2]
[376559598,1754021432343,-460.0,0.00020916,2]
[376559599,1754021432353,-460.0,0.00020916,2]
[376559600,1754021432363,-460.0,0.00020916,2]
[376559602,1754021432372,-463.42,0.00020916,2]
[376559603,1754021432385,-460.0,0.00020916,2]
[376559604,1754021432395,-460.0,0.00020916,2]
[376559605,1754021432404,-460.0,0.00020916,2]
[376559606,1754021432413,-716.61,0.00020916,2]
[376559607,1754021432423,-460.0,0.00020924,2]
[376559610,1754021432432,-460.0,0.00020924,2]
[376559613,1754021432441,-719.19,0.00020924,2]
[376559616,1754021432451,-596.32074146,0.00020924,2]
[376559619,1754021432461,-500.0,0.00020924,2]
[376559622,1754021432471,-510.21897973,0.00020924,2]
[376559625,1754021432480,-516.86926325,0.00020924,2]
[376559627,1754021432489,-500.0,0.00020924,2]
[376559631,1754021432508,-500.0,0.00020924,2]
[376559633,1754021432517,-500.0,0.00020924,2]
[376559635,1754021432527,-500.0,0.00020924,2]
[376559637,1754021432537,-500.0,0.00020924,2]
[376559639,1754021432547,-487.67954199,0.00020924,2]
[376559641,1754021432556,-499.99999999,0.00020924,2]
[376559643,1754021432566,-1076.17,0.00020924,2]
[376559645,1754021432575,-1409.52,0.00020924,2]
[376559647,1754021432585,-460.0,0.00020925,2]
[376559649,1754021432595,-460.0,0.00020925,2]
[376559651,1754021432604,-463.25188992,0.00020925,2]
[376559653,1754021432614,-460.0,0.00020925,2]
[376559655,1754021432623,-465.84102802,0.00020925,2]
[376559657,1754021432632,-460.0,0.00020925,2]
[376559658,1754021432642,-461.60212852,0.00020925,2]
[376559659,1754021432651,-467.62757747,0.00020925,2]
[376559660,1754021432662,-460.0,0.00020925,2]
[376559661,1754021432671,-460.0,0.00020925,2]
[376559662,1754021432681,-461.3729255,0.00020925,2]
[376559663,1754021432692,-464.94060883,0.00020925,2]
[376559664,1754021432701,-426.29950511,0.00020925,2]
[376559665,1754021432711,-460.0,0.00020925,2]
[376559666,1754021432721,-460.0,0.00020925,2]
[376559667,1754021432731,-460.0,0.00020925,2]
[376559668,1754021432740,-393.04761701,0.00020925,2]
[376559669,1754021432750,-469.63842392,0.00020925,2]
[376559670,1754021432759,-465.69750817,0.00020925,2]
[376559671,1754021432769,-463.46427203,0.00020925,2]
[376559672,1754021432779,-464.42712919,0.00020925,2]
[376559673,1754021432788,-443.00584149,0.00020925,2]
[376559674,1754021432798,-463.43518696,0.00020925,2]
[376559675,1754021432807,-460.0,0.00020925,2]
[376559676,1754021432816,-463.16315807,0.00020925,2]
[376559677,1754021432826,-460.0,0.00020925,2]
[376559678,1754021432835,-465.47813509,0.00020925,2]
[376559679,1754021432845,-463.36875166,0.00020925,2]
[376559680,1754021432855,-460.0,0.00020925,2]
[376559681,1754021432865,-460.0,0.00020925,2]
[376559682,1754021432874,-460.0,0.00020925,2]
[376559683,1754021432884,-464.73695834,0.00020925,2]
[376559684,1754021432893,-463.86014701,0.00020925,2]
[376559685,1754021432903,-506.58085314,0.00020925,2]
[376559686,1754021432912,-462.60385889,0.00020925,2]
[376559687,1754021432922,-465.64675341,0.00020925,2]
[376559688,1754021432931,-469.74229333,0.00020925,2]
[376559689,1754021432940,-463.1902073,0.00020925,2]
[376559690,1754021432950,-460.0,0.00020925,2]
[376559691,1754021432960,-460.0,0.00020925,2]
[376559692,1754021432970,-460.0,0.00020925,2]
[376559693,1754021432979,-467.135318,0.00020925,2]
[376559694,1754021432988,-460.0,0.00020925,2]
[376559695,1754021432997,-460.0,0.00020925,2]
[376559696,1754021433006,-464.08641232,0.00020925,2]
[376559697,1754021433016,-461.87199743,0.00020925,2]
[376559698,1754021433026,-466.1036289,0.00020925,2]
[376559699,1754021433035,-460.0,0.00020925,2]
[376559700,1754021433046,-462.25743806,0.00020925,2]
[376559701,1754021433055,-462.95321976,0.00020925,2]
[376559702,1754021433065,-460.0,0.00020925,2]
[376559703,1754021433075,-460.0,0.00020925,2]
[376559704,1754021433085,-467.90577577,0.00020925,2]
[376559705,1754021433094,-460.0,0.00020925,2]
[376559706,1754021433105,-460.0,0.00020925,2]
[376559707,1754021433115,-460.0,0.00020925,2]
[376559708,1754021433128,-460.0,0.00020925,2]
[376559709,1754021433138,-462.70333282,0.00020925,2]
[376559710,1754021433148,-460.0,0.00020925,2]
[376559711,1754021433159,-460.0,0.00020925,2]
[376559712,1754021433168,-460.0,0.00020925,2]
[376559713,1754021433178,-462.44972894,0.00020925,2]
[376559714,1754021433187,-513.68730075,0.00020925,2]
[376559715,1754021433197,-464.63171142,0.00020925,2]
[376559716,1754021433206,-462.59990091,0.00020925,2]
[376559717,1754021433216,-462.88304711,0.00020925,2]
[376559718,1754021433225,-460.0,0.00020925,2]
[376559719,1754021433235,-392.00655557,0.00020925,2]
[376559720,1754021433244,-460.0,0.00020925,2]
[376559721,1754021433254,-461.26224624,0.00020925,2]
[376559722,1754021433265,-460.0,0.00020925,2]
[376559723,1754021433275,-467.34403927,0.00020925,2]
[376559724,1754021433284,-460.0,0.00020925,2]
[376559725,1754021433294,-379.45723818,0.00020925,2]
[376559726,1754021433303,-460.0,0.00020925,2]
[376559727,1754021433313,-462.52535751,0.00020925,2]
[376559728,1754021433322,-577.1220938,0.00020925,2]
[376559729,1754021433332,-460.0,0.00020925,2]
[376559730,1754021433341,-463.0658878,0.00020925,2]
[376559731,1754021433351,-460.0,0.00020925,2]
[376559732,1754021433361,-465.14946761,0.00020925,2]
[376559733,1754021433371,-460.0,0.00020925,2]
[376559734,1754021433382,-468.15165828,0.00020925,2]
[376559735,1754021433397,-528.30259387,0.00020925,2]
[376559736,1754021433407,-523.01,0.00020925,2]
[376559737,1754021433417,-467.26303398,0.00020925,2]
[376559738,1754021433427,-460.0,0.00020925,2]
[376559739,1754021433438,-460.0,0.00020925,2]
[376559740,1754021433448,-193.14711325,0.00020925,2]
[376559741,1754021433458,-1264.52,0.00020925,2]
[376559742,1754021433468,-461.1206978,0.00020925,2]
[376559743,1754021433478,-469.80538044,0.00020925,2]
[376559744,1754021433487,-460.0,0.00020925,2]
[376559745,1754021433498,-466.18117133,0.00020925,2]
[376559746,1754021433507,-460.0,0.00020925,2]
[376559747,1754021433517,-460.0,0.00020925,2]
[376559748,1754021433527,-262.04817577,0.00020925,2]
[376559749,1754021433536,-549.76272409,0.00020925,2]
[376559750,1754021433547,-460.0,0.00020925,2]
[376559751,1754021433556,-460.0,0.00020925,2]
[376559752,1754021433566,-460.0,0.00020925,2]
[376559753,1754021433576,-460.0,0.00020925,2]
[376559754,1754021433585,-463.65135456,0.00020925,2]
[376559755,1754021433597,-226.16211475,0.00020925,2]
[376559756,1754021433608,-460.0,0.00020925,2]
[376559757,1754021433617,-460.0,0.00020925,2]
[376559758,1754021433627,-460.0,0.00020925,2]
[376559759,1754021433637,-460.0,0.00020925,2]
[376559760,1754021433646,-298.72157157,0.00020925,2]
[376559761,1754021433658,-460.88589748,0.00020925,2]
[376559762,1754021433668,-411.86980828,0.00020925,2]
[376559763,1754021433678,-190.86946886,0.00020925,2]
[376559764,1754021433688,-460.0,0.00020926,2]
[376559765,1754021433699,-460.0,0.00020926,2]
[376559766,1754021433709,-460.0,0.00020926,2]
[376559767,1754021433719,-464.53021649,0.00020926,2]
[376559768,1754021433729,-681.76,0.00020926,2]
[376559769,1754021433739,-470.09562501,0.00020926,2]
[376559770,1754021433748,-460.0,0.00020926,2]
[376559771,1754021433758,-731.45,0.00020926,2]
[376559772,1754021433768,-468.82,0.00020926,2]
[376559773,1754021433778,-515.23,0.00020926,2]
[376559774,1754021433788,-460.0,0.00020926,2]
[376559775,1754021433797,-460.0,0.00020926,2]
[376559776,1754021433807,-463.78196212,0.00020927,2]
[376559777,1754021433816,-462.29444186,0.00020927,2]
[376559778,1754021433826,-464.95430982,0.00020927,2]
[376559779,1754021433836,-464.99348653,0.00020927,2]
[376559780,1754021433846,-465.50230247,0.00020927,2]
[376559781,1754021433858,-463.831413,0.00020927,2]
[376559782,1754021433867,-460.0,0.00020927,2]
[376559783,1754021433877,-462.95781527,0.00020927,2]
[376559784,1754021433887,-461.97111419,0.00020927,2]
[376559785,1754021433896,-467.06230291,0.00020927,2]
[376559786,1754021433906,-468.1199021,0.00020927,2]
[376559787,1754021433915,-466.11425067,0.00020927,2]
[376559788,1754021433925,-464.72311378,0.00020927,2]
[376559789,1754021433935,-484.39431821,0.00020927,2]
[376559790,1754021433944,-465.32059873,0.00020927,2]
[376559791,1754021433954,-607.40020126,0.00020927,2]
[376559792,1754021433963,-464.76184858,0.00020927,2]
[376559793,1754021433974,-471.46510935,0.00020927,2]
[376559794,1754021433983,-460.0,0.00020927,2]
[376559795,1754021433993,-461.36168465,0.00020927,2]
[376559796,1754021434003,-335.86449453,0.00020927,2]
[376559797,1754021434012,-475.62913061,0.00020927,2]
[376559798,1754021434022,-462.91240379,0.00020927,2]
[376559799,1754021434032,-505.96282948,0.00020927,2]
[376559800,1754021434041,-3000.0,0.00021,2]
[376559801,1754021434051,-3000.0,0.0002101,2]
[376559802,1754021434060,-3000.0,0.0002102,2]
[376559803,1754021434069,-3000.0,0.0002103,2]
[376559804,1754021434079,-600.0,0.00021035,2]
[376559805,1754021434089,-3000.0,0.0002104,2]
[376559806,1754021434098,-3000.0,0.0002105,2]
[376559807,1754021434107,-3000.0,0.0002106,2]
[376559808,1754021434116,-3000.0,0.0002107,2]
[376559809,1754021434126,-366.5634968,0.00021073,2]
[376559810,1754021434135,-3000.0,0.0002108,2]
[376559811,1754021434144,-3000.0,0.0002109,2]
[376559812,1754021434154,-3000.0,0.000211,2]
[376559813,1754021434163,-3000.0,0.0002111,2]
[376559814,1754021434172,-3000.0,0.0002112,2]
[376559815,1754021434182,-3000.0,0.0002113,2]
[376559816,1754021434191,-156.829139,0.0002113,2]
[376559817,1754021434200,-151.0,0.0002113,2]
[376559818,1754021434209,-3000.0,0.0002114,2]
[376559819,1754021434219,-3000.0,0.0002115,2]